Cogmind - Beta 12 @@@ ROGUE MODE // 2023.11.10 @ 18:41:09 Player: FriskO Result: Destroyed by ZP-P62(z) with Makeshift Shrapnel Gun Performance ------------- Evolutions (1) 500 Regions Visited (4) 800 Robots Destroyed (52) 260 Value Destroyed (921) 921 Prototype IDs (2) 40 Alien Tech Used (0) 0 Bonus (-39) -39 TOTAL SCORE: 2482 Bonus ------- Friendly Fire -39 Cogmind --------- Core Integrity 0/400 Matter 158/300 Energy 100/100 System Corruption 9% Temperature Warm (106) Movement Core (50) Location -7/Zion Parts ------- > --- POWER (1) -------- (None) > --- PROPULSION (3) --- (None) > --- UTILITY (3) ------ (None) > --- WEAPON (2) ------- (None) > --- INVENTORY (5) ---- Makeshift Leg Disposable Heat Sink Compact Battery (200) Launcher Guidance Computer Hacking Drone Bay (0/1) Peak State ------------ > --- POWER ------------ Improved Deuterium Engine > --- PROPULSION ------- Improved Titanium Leg Makeshift Leg Makeshift Leg > --- UTILITY ---------- Core Analyzer Core Shielding Makeshift Armor Plating > --- WEAPON ----------- Advanced Beam Rifle Makeshift Shrapnel Gun > --- INVENTORY -------- Makeshift Leg Disposable Heat Sink Compact Battery Launcher Guidance Computer Hacking Drone Bay [Rating: 35] Favorites ----------- Power Improved Ion Engine Engine Improved Ion Engine Propulsion Aluminum Leg Treads Light Treads Leg Aluminum Leg Utility High-capacity Storage Unit Device Hacking Drone Bay Storage High-capacity Storage Unit Processor Targeting Computer Protection Medium Armor Plating Weapon Heavy Assault Rifle Energy Gun Medium Laser Ballistic Gun Heavy Assault Rifle Launcher Mini Grenade Launcher Impact Weapon Heavy Hammer Slashing Weapon Mining Claw Build | -11 -10 -9 -9 -7 ------- Run | Jun Mat Mat Min Zio Slots Evolved 2 | . . 2 . . Power . | . . . . . Propulsion 1 | . . 1 . . Utility 1 | . . 1 . . Weapon . | . . . . . Parts Attached 75 | 7 4 24 3 37 Power 7 | 1 . 2 . 4 Engine 7 | 1 . 2 . 4 Core . | . . . . . Reactor . | . . . . . Propulsion 21 | 2 . 7 . 12 Treads 1 | . . 1 . . Leg 20 | 2 . 6 . 12 Wheel . | . . . . . Hover . | . . . . . Flight . | . . . . . Utility 17 | 2 1 6 . 8 Device 6 | 1 1 2 . 2 Storage 2 | 1 . 1 . . Processor 3 | . . 1 . 2 Hackware . | . . . . . Protection 6 | . . 2 . 4 Artifact . | . . . . . Weapon 30 | 2 3 9 3 13 Energy Gun 15 | 2 2 5 . 6 Energy Cannon . | . . . . . Ballistic Gun 9 | . . 4 2 3 Ballistic Cannon . | . . . . . Launcher 2 | . . . . 2 Special Weapon . | . . . . . Impact Weapon 3 | . . . 1 2 Slashing Weapon 1 | . 1 . . . Piercing Weapon . | . . . . . Special Melee Weapon . | . . . . . Unidentified Prototypes 2 | . . 1 . 1 Parts Lost 18 | . . 2 . 16 Power 1 | . . . . 1 Propulsion 9 | . . 2 . 7 Utility 3 | . . . . 3 Weapon 5 | . . . . 5 Highest Loss Streak 11 | . . 2 . 11 To Critical Strikes . | . . . . . Average Slot Usage (%) 98 | . 99 99 100 97 Engine 11 | . 14 11 11 10 Leg 30 | . 28 29 33 32 Device 5 | . 14 3 . 6 Storage 10 | . 14 11 11 9 Processor 9 | . . 11 11 10 Protection 6 | . . 7 11 5 Energy Gun 5 | . 27 3 . 2 Ballistic Gun 15 | . . 18 21 16 Impact Weapon 1 | . . . . 2 Naked Turns 2 | . . . . 2 Heaviest Build 60 | 15 15 58 60 60 Greatest Support 60 | 20 20 30 30 60 Greatest Overweight (x) 5 | 1 . 1 1 5 Average Overweight (x) . | . . . 1 . Largest Inventory Capacity 20 | 8 8 20 20 20 Average Capacity 16 | 7 8 16 20 18 Most Carried 20 | 5 8 15 15 20 Average Carried 13 | 3 6 10 15 15 Final Capacity 20 | 8 8 20 20 5 Final Carried 15 | 5 8 15 15 5 Class Distribution -------------------- 75% | Scavenger-Mutant 24% | Mutant Dominant Class ---------------- Mutant | -10/Materials Scavenger-Mutant | -9/Materials Scavenger-Mutant | -9/Mines Scavenger-Mutant | -7/Zion Resources | -11 -10 -9 -9 -7 ----------- Run | Jun Mat Mat Min Zio Matter Collected 1219 | 270 97 381 10 461 Remotely . | . . . . . Salvage Created 1389 | 55 149 675 . 510 Parts 111 | 5 10 48 . 48 Haulers Intercepted . | . . . . . Recyclers Shooed . | . . . . . Parts Field Recycled . | . . . . . Retrieved Matter . | . . . . . Parts Self-Destructed . | . . . . . Prevented . | . . . . . Kills | -11 -10 -9 -9 -7 ------- Run | Jun Mat Mat Min Zio Combat Hostiles Destroyed 27 | . 5 20 . 2 Melee 1 | . . . . 1 Guns 26 | . 5 20 . 1 Classes Destroyed 10 | 2 2 3 . 3 Worker 1 | 1 . . . . Tunneler 2 | 2 . . . . Recycler 1 | . 1 . . . Watcher 1 | . . 1 . . Swarmer 13 | . 5 8 . . Grunt 9 | . . 9 . . Sentry 3 | . . 3 . . Zionite 23 | . . . . 23 Butcher 1 | . . . . 1 Mutant 1 | . . . . 1 Best Kill Streak 10 | 2 3 5 . 10 Combat Bots Only 5 | . 3 5 . 1 Max Kills in Single Turn 2 | 1 2 1 . 2 Gunslinging 1 | . 1 . . . Exploded . | . . . . . Melee 1 | . . . . 1 Uniques/NPCs Destroyed . | . . . . . Combat | -11 -10 -9 -9 -7 -------- Run | Jun Mat Mat Min Zio Damage Taken 3289 | . 250 751 . 2288 Core 452 | . 39 43 . 370 Absorbed by Shields . | . . . . . Redirected to Shielding 20 | . . . . 20 Core Remaining (%) 92 | 100 84 . . . Volleys Fired 124 | 3 14 52 . 55 Largest 2 | 2 2 2 . 2 Hottest 136 | 100 100 111 . 136 Shots Fired 238 | 6 28 101 . 103 Gun 233 | 6 28 101 . 98 Cannon . | . . . . . Launcher 5 | . . . . 5 Special . | . . . . . Kinetic 123 | . . 73 . 50 Thermal 110 | 6 28 28 . 48 Explosive 5 | . . . . 5 Electromagnetic . | . . . . . Robot Hit Streak 18 | 3 5 18 . 14 Robot Miss Streak 5 | . 3 3 . 5 Penetration Max . | . . . . . Secondary Targets 12 | . 2 4 . 6 Max Gunslinging Chain 1 | . 1 1 . 1 Shots Hit Robots 170 | 3 16 73 . 78 Core Hits 83 | 3 7 30 . 43 Critical Kills 1 | . . . . 1 Critical Parts Destroyed 2 | . . . . 2 Critical Strikes 11 | 3 2 2 . 4 Burn 8 | 3 2 2 . 1 Smash 3 | . . . . 3 Melee Attacks 42 | . 7 . 5 30 Impact 35 | . . . 5 30 Slashing 7 | . 7 . . . Piercing . | . . . . . Sneak Attacks . | . . . . . Combat Hostiles . | . . . . . Follow-up Attacks . | . . . . . Damage Inflicted 2876 | 49 189 957 . 1681 Guns 2366 | 49 189 957 . 1171 Cannons . | . . . . . Explosions 331 | . . . . 331 Melee 179 | . . . . 179 Ramming . | . . . . . Kinetic 1274 | . . 727 . 547 Thermal 1092 | 49 189 230 . 624 Explosive 331 | . . . . 331 Electromagnetic . | . . . . . Impact 179 | . . . . 179 Slashing . | . . . . . Piercing . | . . . . . Highest Corruption 9 | . . . . 9 Average Corruption 8 | . . . . 8 Corruption Purged . | . . . . . Corruption Blocked . | . . . . . Effects 13 | . . . . 13 Message Errors 3 | . . . . 3 Matter Fused 3 | . . . . 3 Heat Flow Errors 1 | . . . . 1 Energy Discharges 2 | . . . . 2 Data Loss (minor) 1 | . . . . 1 Alerts 3 | . . . . 3 Overload Shots . | . . . . . Overflow Damage 103 | . . . . 103 Projectiles . | . . . . . Explosions 33 | . . . . 33 Melee 70 | . . . . 70 Knockbacks . | . . . . . Impact . | . . . . . Kinetic . | . . . . . Secondary . | . . . . . Self-Inflicted Damage 54 | . . . . 54 Shots 2 | . . . . 2 Rammed . | . . . . . Targets Rammed . | . . . . . Kicked . | . . . . . Crushed . | . . . . . Highest Temperature 524 | 42 333 337 . 524 Average Temperature 108 | 21 113 62 . 137 Received Heat Transfer 572 | . . 186 . 386 Effects 10 | . . 3 . 7 Shutdowns 1 | . . . . 1 Energy Bleed 1 | . . . . 1 Interference 6 | . . 3 . 3 Short Circuit 1 | . . . . 1 Damage (minor) 1 | . . . . 1 Siege Activations . | . . . . . Robots Corrupted . | . . . . . Combat Hostiles . | . . . . . Parts Fried . | . . . . . Impact Corruptions 2 | . . . . 2 Robots Melted 1 | . . . . 1 Combat Hostiles . | . . . . . Parts Melted 7 | 3 3 . . 1 Heat Transferred 2960 | 370 703 629 . 1258 Parts Sabotaged . | . . . . . Parts Stolen . | . . . . . Parts Stripped . | . . . . . Power Chain Reactions . | . . . . . Missiles Intercepted . | . . . . . Alert | -11 -10 -9 -9 -7 ------- Run | Jun Mat Mat Min Zio Peak Influence 335 | 15 153 335 82 . Initial 82 | . 9 5 82 . Average 118 | 4 56 198 65 . Maximum Alert Level 1 | . . 1 . . Low Security (%) 77 | 100 100 48 100 . Level 1 22 | . . 51 . . Level 2 . | . . . . . Level 3 . | . . . . . Level 4 . | . . . . . Level 5 . | . . . . . High Security . | . . . . . Max Security . | . . . . . Squads Dispatched 2 | . . 2 . . Investigation . | . . . . . Extermination . | . . . . . Reinforcement 2 | . . 2 . . Assault . | . . . . . Garrison . | . . . . . Intercept . | . . . . . Searches Triggered . | . . . . . Construction Impeded . | . . . . . Haulers Reinforced . | . . . . . Active Scanning Responses . | . . . . . Cargo Convoy Interrupts . | . . . . . Stealth | -11 -10 -9 -9 -7 --------- Run | Jun Mat Mat Min Zio Distress Signals 1 | . . 1 . . Communications Jammed . | . . . . . Distress Signals . | . . . . . Times Spotted 73 | . 10 23 . 40 Peak Tracking Total 6 | . 5 6 . 6 Tactical Retreats 8 | . . 1 . 7 Traps | -11 -10 -9 -9 -7 ------- Run | Jun Mat Mat Min Zio Traps Triggered . | . . . . . Indirectly . | . . . . . Trap Hack Attempts . | . . . . . Triggered . | . . . . . Disarmed . | . . . . . Reprogrammed . | . . . . . Reused . | . . . . . Traps Extracted . | . . . . . Installed . | . . . . . Triggered . | . . . . . Machines | -11 -10 -9 -9 -7 ---------- Run | Jun Mat Mat Min Zio Machines Disabled 1 | . . . . 1 Max in Single Turn 1 | . . . . 1 Machines Repaired . | . . . . . Machines Sabotaged . | . . . . . Overloaded Fab Kills . | . . . . . Hacking | -11 -10 -9 -9 -7 --------- Run | Jun Mat Mat Min Zio Machines Accessed 4 | . 2 2 . . Terminals 4 | . 2 2 . . Fabricators . | . . . . . Repair Stations . | . . . . . Recycling Units . | . . . . . Scanalyzers . | . . . . . Garrison Access . | . . . . . Total Hacks 15 | . 10 5 . . Successful 9 | . 4 5 . . Failed 6 | . 6 . . . Catastrophic . | . . . . . Database Lockouts . | . . . . . Manual 2 | . . . . 2 Terminals 15 | . 10 5 . . Fabricators . | . . . . . Repair Stations . | . . . . . Recycling Units . | . . . . . Scanalyzers . | . . . . . Garrison Access . | . . . . . Terminal Hacks 9 | . 4 5 . . Record 4 | . 2 2 . . Robot Analysis 1 | . . 1 . . Alert Level 1 | . . 1 . . Locate Traps 1 | . . 1 . . Dispatch Records 1 | . 1 . . . Zone Layout 1 | . 1 . . . Fabricator Hacks . | . . . . . Repair Station Hacks . | . . . . . Recycling Unit Hacks . | . . . . . Scanalyzer . | . . . . . Garrison Access Hacks . | . . . . . Unauthorized Hacks . | . . . . . Terminals . | . . . . . Fabricators . | . . . . . Repair Stations . | . . . . . Recycling Units . | . . . . . Scanalyzers . | . . . . . Garrison Access . | . . . . . Data Cores Recovered . | . . . . . Used . | . . . . . Hacking Detections 2 | . 1 1 . . Full Trace Events 1 | . . 1 . . Feedback Events . | . . . . . Feedback Blocked . | . . . . . Robot Schematics Acquired . | . . . . . Robots Built . | . . . . . Authchips . | . . . . . Time . | . . . . . Total Robot Build Rating . | . . . . . Part Schematics Acquired . | . . . . . Parts Built . | . . . . . Authchips . | . . . . . Time . | . . . . . Total Part Build Rating . | . . . . . Parts Repaired . | . . . . . Time . | . . . . . Parts Recycled . | . . . . . Recycled Matter . | . . . . . Retrieved Matter . | . . . . . Retrieved Components . | . . . . . Parts Scanalyzed . | . . . . . Part Schematics Acquired . | . . . . . Parts Damaged . | . . . . . Bothacking | -11 -10 -9 -9 -7 ------------ Run | Jun Mat Mat Min Zio Used RIF Installer . | . . . . . Robots Hacked . | . . . . . Non-combat . | . . . . . Combat . | . . . . . Robot Hacks Applied . | . . . . . Relay Couplers Released . | . . . . . Fabnet Peak Effective % . | . . . . . Robots Rewired . | . . . . . Allies Hacked . | . . . . . Hacks Repelled . | . . . . . Allies | -11 -10 -9 -9 -7 -------- Run | Jun Mat Mat Min Zio Total Allies . | . . . . . Largest Group . | . . . . . Highest-Rated Group . | . . . . . Highest-Rated Ally . | . . . . . Total Orders . | . . . . . Ally Attacks . | . . . . . Total Damage . | . . . . . Kills . | . . . . . Allies Corrupted 1 | . . . . 1 Allies Melted . | . . . . . Intel | -11 -10 -9 -9 -7 ------- Run | Jun Mat Mat Min Zio Robot Analysis Total 1 | . . 1 . . Derelict Logs Recovered 3 | . . . 2 1 Drone Launches 1 | . . . . 1 Drone Recoveries . | . . . . . Exploration | -11 -10 -9 -9 -7 ------------- Run | Jun Mat Mat Min Zio Turns Passed 3672 | 109 468 841 503 1751 Spaces Moved 1614 | 79 255 338 252 690 Core 23 | 20 . . . 3 Treads 2 | . . 2 . . Legs 1589 | 59 255 336 252 687 Wheels . | . . . . . Hover . | . . . . . Flight . | . . . . . Fastest Speed 50 | 50 120 120 190 50 Average Speed 167 | 103 120 169 190 184 Slowest Speed 470 | 190 120 190 190 470 Overloaded Moves . | . . . . . Propulsion Burnouts . | . . . . . Robots Hopped . | . . . . . Cave-ins Triggered . | . . . . . Exploration Rate (%) 37 | 4 34 25 56 68 Regions Visited 4 Branch Regions 2 Pre-discovered Areas . | . . . . . Known Exits Taken . | . . . . . Unknown Exits Taken 4 | 1 1 1 1 . Scrap Searched 4 | . . . 1 3 Spaces Dug 11 | . 2 . 5 4 Terrain Destroyed 16 | . 2 . 5 9 Melee 7 | . 2 . 5 . Projectile . | . . . . . AOE 9 | . . . . 9 Terrain Rammed . | . . . . . Walls Destroyed . | . . . . . Machines Disabled . | . . . . . Actions | -11 -10 -9 -9 -7 --------- Run | Jun Mat Mat Min Zio Total 2263 | 100 376 511 266 1010 Wait 312 | . 84 60 7 161 Move 1610 | 78 254 337 251 690 Hop . | . . . . . Pick Up 66 | 12 7 23 . 24 Fast Attach 4 | . . 3 . 1 Attach 28 | 7 1 4 . 16 Detach 1 | . 1 . . . Swap 43 | . 3 17 3 20 Drop 33 | . 5 15 . 13 Fire 124 | 3 14 52 . 55 Melee 42 | . 7 . 5 30 Ram . | . . . . . Kick . | . . . . . Crush . | . . . . . Escape Stasis . | . . . . . Rewire . | . . . . . Trap . | . . . . . Miscellaneous . | . . . . . Route ------- -11/Junkyard -10/Materials -9/Materials -9/Mines (discovered 3 exits: *Mat x2 / *Zio) -7/Zion History --------- Turn | Location | Event 5 | -11/Junkyard | Discovered new exit (range 15) 110 | -11/Junkyard | Entered Materials 301 | -10/Materials | Build established: Mutant 515 | -10/Materials | Discovered new exit (range 8) 578 | -10/Materials | Entered another Materials area 578 | -9/Materials | Evolved 2 slots: Propulsion x1, Utility x1 1065 | -9/Materials | Build established: Scavenger-Mutant 1284 | -9/Materials | Discovered new exit (range 7) 1419 | -9/Materials | Entered Mines 1500 | -9/Mines | Identified exit to Materials 1911 | -9/Mines | A Derelict revealed a hidden shortcut to a safe place 1922 | -9/Mines | Entered Zion 2108 | -7/Zion | Given the Hacking Drone Bay 2112 | -7/Zion | Found Prototype Device 2113 | -7/Zion | Identified Hacking Drone Bay 2196 | -7/Zion | Loaded intel: 4 derelict terminal locations 2316 | -7/Zion | Found GAL Module 2435 | -7/Zion | Learned Factory terminal intel 3223 | -7/Zion | Attacked by Zionites 3297 | -7/Zion | Core integrity fell below 50% 3344 | -7/Zion | Lost 11 parts (1p5n2u3w) 3649 | -7/Zion | Core integrity fell below 20% 3671 | -7/Zion | Released all parts (7) 3673 | -7/Zion | Destroyed by ZP-P62(z) with Makeshift Shrapnel Gun Last Messages --------------- 03613_ DL-YXJ(z) pulls a Mak. Hammer out of the Twisted Machinery. 03613_ DL-YXJ(z) destroyed. 03629_ Acquired 10 matter. 03629_ M8-MXB(z) pulls a Mak. Hammer out of the Twisted Machinery. 03642_ System corrupted: Energy discharge (-78). 03646_ Critical hit (Burn: +37). 03649_ M8-MXB(z) destroyed. 03649_ Switching to secondary target: 6Z-NO1(z). 03649_ 6Z-NO1(z) destroyed. 24-O3Y(z) bursts out of the Twisted Machinery. 03667_ Adv. Beam Rifle destroyed. 03671_ Mak. Shrapnel Gun destroyed. 03671_ Knocked back. 03671_ Released Core Shielding. 03671_ Released Core Analyzer. 03671_ Released Mak. Armor Plating. 03671_ Released Imp. Titanium Leg. 03671_ Released Mak. Leg. 03671_ Released Imp. Deuterium Engine. 03671_ Released Mak. Leg. Map ----- +----------------------------------------------------+ | " !! /=#""" "" "#"" """""" """""""" | | !!=*[""""" """ """" """ """ """ | | / !&=/!="" """"""""" "" """ "" | | ! *//== """""""" "" "" "" | | [ =*/ " """" """ | | " #"" """ """" | | #=##"" [ """" % "" "#""""" " | | ######" = """= """ """""""" """ | | ????#"" """ """ =[! % | | ????#"" """"" " = | | ?????#" """""" """ | | ????#""""""""" """" """ """"" | | ????#" "#""" """"" """""" """""" | | ????# #""" """""" """#""" """""" """ | | ???? #" # " """""* #""##"" """##""" ""# | | ?????### """"= %* "#"#""" ""####"""""""## | | ?????#" % ! !// """""#"""""""#??########"# | | ????#""" ! = ! """##""#"""##??????????## | | ????""" """""" = "#########????????????? | | ????#" """"" ""#???????????????????? | | ????#"" " """"#???????????????????? | | ????#"" "" """"##???????????????????? | | ?????"" """ """"" =""""#????????????????????? | | ?????" """ """"" = """"#????????????????????? | | ????? ? """"""" ""####??????????????????? | | ???? ????"#"" @""""#??????????????????? | | ???? ??????""" " ""###?????????????????? | | ???????????#""" """ =="""#?????????????????? | | ???????????""#" """" z!!"##?????????????????? | | ???????????"""" "#"" zz"""#?????????????????? | | ????????????##" """#" z" ###?????????????????? | | ?????????????"""""""" ""##???????????????????? | | ?????????????"#""##" =""#????????????????????? | | ???????????????"#""" * ""#????????????????????? | | ?????????????###""" %* """#????????????????????? | | ???????? ?"##"#"""" "###????????????????????? | | ???????" ""#"""""" ""#?????????????????????? | | ??????#" "#""""" "###????????????????????? | | ??????"" """ "" " """#???????????????####?? | | ??????#" "" "#"" " "###????? ?#?""###""### | | ??????#" "" """"" ] ""##?????" ##"#""""""""# | | ?????##" """ """"" """"""???? # """""" "" | | ?????#"" """ """#" ???"" " " | | ?????#"" """"" ?""" | | ?????#"" " """"" """ "" """ | | ?????##""" """ " | | ??????#""" """""" | | ??????##"" """"" $ | | ???????##"""""" "" """ | | ????????##"" """ "" """" " | +----------------------------------------------------+ Best States ------------- Heat Dissipation 28 Coolant Potential 50 Energy Generation 16 Energy Capacity 290 Matter Stores 300 Matter Capacity 300 Sight Range 16 Terrain Scan Density 10 Armor Coverage 225 Core Shielding 20 Evasion (%) 55 Targeting Accuracy 8 Core Analysis 6 Item Schematics ----------------- None Robot Schematics ------------------ None Fabricated ------------ Nothing Alien Tech Used ----------------- None Achievements -------------- Monster Robot Respite Challenges ------------ None Game ------ Seed EnergyCombatAccelerator Manual? 0 Play Time 01:50:31 Cumulative 10.5 hours Start 2023.11.10 @ 14:26:54 End 2023.11.10 @ 18:41:09 Sessions 3 Manual Loads 0 Difficulty Rogue Special Mode None Game No. 12 Rogue 12 Adventurer 0 Explorer 0 Win Type - Total 0 Types 0/0/0/0/0/0/0/0/0 Lore% 3 Gallery% 9 Achievement% 5 Wizard Run 0 Options --------- ASCII 0 Keyboard 0 Movement Mouse Keybinds 0 Fullscreen 1 Font 18/X11Bold Map View 76x50 Tactical HUD 1 Map Filters NONE Filters NONE Steam 1 RUN: a17335e9-7765-4645-acb9-2a3e2011a940